[Event "Titled Tuesday Blitz December 13 Early 2022"]
[White "Matveeva, Olga"]
[Black "Zemlyanskii, Ivan"]
[WhiteFideId "24107018"]
[BlackFideId "24249971"]
[WhiteElo "2056"]
[BlackElo "2107"]
[Result "0-1"]
[Round "08"]
[TimeControl "180+1"]
[Date "2022.12.14"]
[WhiteClock "0:00:04"]
[BlackClock "0:00:17"]

1. d4 {[%clk 0:03:00]}  d5 {[%clk 0:03:00]} 2. c4 {[%clk 0:03:00]}  e6 {[%clk 0:03:00]} 3. Nf3 {[%clk 0:03:00]}  Nf6 {[%clk 0:03:00]} 4. g3 {[%clk 0:03:01]}  dxc4 {[%clk 0:03:00]} 5. Bg2 {[%clk 0:03:00]}  a6 {[%clk 0:03:00]} 6. Ne5 {[%clk 0:02:58]}  Bb4+ {[%clk 0:02:56]} 7. Nc3 {[%clk 0:02:48]}  Nd5 {[%clk 0:02:56]} 8. Bd2 {[%clk 0:02:46]}  Nb6 {[%clk 0:02:52]} 9. e3 {[%clk 0:02:27]}  O-O {[%clk 0:02:49]} 10. O-O {[%clk 0:02:27]}  N8d7 {[%clk 0:02:49]} 11. Qe2 {[%clk 0:02:03]}  Nxe5 {[%clk 0:02:33]} 12. dxe5 {[%clk 0:02:04]}  Rb8 {[%clk 0:02:01]} 13. Rfd1 {[%clk 0:01:55]}  Bd7 {[%clk 0:01:59]} 14. a3 {[%clk 0:01:54]}  Bxc3 {[%clk 0:01:57]} 15. Bxc3 {[%clk 0:01:52]}  Qg5 {[%clk 0:01:55]} 16. h4 {[%clk 0:01:41]}  Qg6 {[%clk 0:01:45]} 17. Rd4 {[%clk 0:01:29]}  h6 {[%clk 0:01:20]} 18. Rg4 {[%clk 0:01:13]}  Qh7 {[%clk 0:01:08]} 19. Be4 {[%clk 0:01:11]}  Qh8 {[%clk 0:01:07]} 20. h5 {[%clk 0:00:50]}  Bc6 {[%clk 0:01:01]} 21. Bxc6 {[%clk 0:00:43]}  bxc6 {[%clk 0:01:02]} 22. e4 {[%clk 0:00:35]}  Rfd8 {[%clk 0:00:57]} 23. Rd1 {[%clk 0:00:31]}  Kh7 {[%clk 0:00:54]} 24. Rd4 {[%clk 0:00:21]}  Rxd4 {[%clk 0:00:50]} 25. Bxd4 {[%clk 0:00:22]}  Qd8 {[%clk 0:00:51]} 26. Qe3 {[%clk 0:00:22]}  Qd7 {[%clk 0:00:47]} 27. Kg2 {[%clk 0:00:20]}  Na4 {[%clk 0:00:46]} 28. Bc3 {[%clk 0:00:13]}  Rb3 {[%clk 0:00:43]} 29. Qc1 {[%clk 0:00:12]}  Qd3 {[%clk 0:00:38]} 30. Rf4 {[%clk 0:00:10]}  Nxc3 {[%clk 0:00:25]} 31. bxc3 {[%clk 0:00:11]}  Rb1 {[%clk 0:00:26]} 32. Qe3 {[%clk 0:00:07]}  Qxe3 {[%clk 0:00:23]} 33. fxe3 {[%clk 0:00:08]}  Kg8 {[%clk 0:00:24]} 34. Rf2 {[%clk 0:00:08]}  Rb3 {[%clk 0:00:24]} 35. Rd2 {[%clk 0:00:07]}  Rxc3 {[%clk 0:00:25]} 36. Rd8+ {[%clk 0:00:07]}  Kh7 {[%clk 0:00:25]} 37. Rd7 {[%clk 0:00:07]}  Rxe3 {[%clk 0:00:20]} 38. Rxc7 {[%clk 0:00:06]}  Rxe4 {[%clk 0:00:21]} 39. Rxc6 {[%clk 0:00:06]}  Rxe5 {[%clk 0:00:22]} 40. Rxc4 {[%clk 0:00:06]}  Rxh5 {[%clk 0:00:18]} 41. Kf3 {[%clk 0:00:06]}  Rf5+ {[%clk 0:00:18]} 42. Ke4 {[%clk 0:00:06]}  Kg6 {[%clk 0:00:19]} 43. g4 {[%clk 0:00:06]}  Rd5 {[%clk 0:00:19]} 44. a4 {[%clk 0:00:06]}  a5 {[%clk 0:00:14]} 45. Kf4 {[%clk 0:00:06]}  h5 {[%clk 0:00:15]} 46. gxh5+ {[%clk 0:00:05]}  Rxh5 {[%clk 0:00:16]} 47. Kg3 {[%clk 0:00:05]}  Rd5 {[%clk 0:00:17]} 48. Re4 {[%clk 0:00:05]}  Kf6 {[%clk 0:00:17]} 49. Rf4+ {[%clk 0:00:05]}  Rf5 {[%clk 0:00:17]} 50. Rc4 {[%clk 0:00:05]}  g5 {[%clk 0:00:18]} 51. Rd4 {[%clk 0:00:05]}  Rd5 {[%clk 0:00:19]} 52. Rc4 {[%clk 0:00:05]}  Kf5 {[%clk 0:00:19]} 53. Kf3 {[%clk 0:00:04]}  f6 {[%clk 0:00:20]} 54. Kg3 {[%clk 0:00:04]}  Rd3+ {[%clk 0:00:20]} 55. Kf2 {[%clk 0:00:04]}  Rd5 {[%clk 0:00:21]} 56. Kg3 {[%clk 0:00:04]}  e5 {[%clk 0:00:21]} 57. Kf3 {[%clk 0:00:04]}  e4+ {[%clk 0:00:22]} 58. Ke3 {[%clk 0:00:04]}  g4 {[%clk 0:00:22]} 59. Kf2 {[%clk 0:00:04]}  Kf4 {[%clk 0:00:17]} 0-1


[Site "https://www.chess.com"]

[Event "Titled Tuesday Blitz December 13 Early 2022"]
[White "Mazurkiewicz, Michal"]
[Black "Kostiukov, Alexandr"]
[WhiteFideId "1124943"]
[BlackFideId "14108100"]
[WhiteElo "2081"]
[BlackElo "2202"]
[Result "1-0"]
[Round "08"]
[TimeControl "180+1"]
[Date "2022.12.14"]
[WhiteClock "0:02:33"]
[BlackClock "0:00:54"]

1. e4 {[%clk 0:03:00]}  c5 {[%clk 0:02:59]} 2. Nf3 {[%clk 0:03:00]}  g6 {[%clk 0:02:59]} 3. g3 {[%clk 0:03:01]}  Bg7 {[%clk 0:02:59]} 4. Bg2 {[%clk 0:03:01]}  Nc6 {[%clk 0:02:59]} 5. O-O {[%clk 0:03:01]}  e5 {[%clk 0:02:58]} 6. d3 {[%clk 0:03:01]}  Nge7 {[%clk 0:02:59]} 7. Nc3 {[%clk 0:03:02]}  O-O {[%clk 0:02:58]} 8. Nd2 {[%clk 0:03:03]}  d6 {[%clk 0:02:55]} 9. Nc4 {[%clk 0:03:03]}  Be6 {[%clk 0:02:55]} 10. Nd5 {[%clk 0:03:04]}  Qd7 {[%clk 0:02:41]} 11. a4 {[%clk 0:03:01]}  f5 {[%clk 0:02:39]} 12. f4 {[%clk 0:03:00]}  fxe4 {[%clk 0:02:37]} 13. dxe4 {[%clk 0:03:01]}  exf4 {[%clk 0:02:31]} 14. Bxf4 {[%clk 0:02:54]}  Bxd5 {[%clk 0:01:51]} 15. exd5 {[%clk 0:02:52]}  Nd4 {[%clk 0:01:21]} 16. c3 {[%clk 0:02:51]}  b5 {[%clk 0:01:14]} 17. Nxd6 {[%clk 0:02:45]}  Rxf4 {[%clk 0:01:12]} 18. Rxf4 {[%clk 0:02:40]}  Qxd6 {[%clk 0:01:12]} 19. cxd4 {[%clk 0:02:40]}  Bxd4+ {[%clk 0:01:12]} 20. Kh1 {[%clk 0:02:36]}  Nxd5 {[%clk 0:01:05]} 21. Rxd4 {[%clk 0:02:35]}  cxd4 {[%clk 0:01:03]} 22. Qxd4 {[%clk 0:02:35]}  Rd8 {[%clk 0:01:03]} 23. Rd1 {[%clk 0:02:35]}  bxa4 {[%clk 0:00:58]} 24. Bxd5+ {[%clk 0:02:33]}  Kf8 {[%clk 0:00:56]} 25. Qh8+ {[%clk 0:02:33]}  Ke7 {[%clk 0:00:54]} 26. Qg7+ {[%clk 0:02:33]} 1-0


[Site "https://www.chess.com"]

[Event "Titled Tuesday Blitz December 13 Early 2022"]
[White "Mohammed, Dilshad"]
[Black "Rian, Kapriaga"]
[WhiteFideId "5050421"]
[BlackFideId "7103263"]
[WhiteElo "2102"]
[BlackElo "2273"]
[Result "0-1"]
[Round "08"]
[TimeControl "180+1"]
[Date "2022.12.14"]
[WhiteClock "0:00:40"]
[BlackClock "0:01:16"]

1. Nf3 {[%clk 0:03:00]}  d5 {[%clk 0:02:59]} 2. d4 {[%clk 0:03:00]}  Nf6 {[%clk 0:02:57]} 3. Bf4 {[%clk 0:03:00]}  e6 {[%clk 0:02:57]} 4. e3 {[%clk 0:02:57]}  Bd6 {[%clk 0:02:57]} 5. Bg3 {[%clk 0:02:57]}  O-O {[%clk 0:02:56]} 6. Bd3 {[%clk 0:02:58]}  c5 {[%clk 0:02:56]} 7. Nbd2 {[%clk 0:02:58]}  Qc7 {[%clk 0:02:56]} 8. c3 {[%clk 0:02:59]}  Nbd7 {[%clk 0:02:56]} 9. O-O {[%clk 0:02:55]}  Bxg3 {[%clk 0:02:55]} 10. fxg3 {[%clk 0:02:54]}  e5 {[%clk 0:02:55]} 11. Nh4 {[%clk 0:02:48]}  cxd4 {[%clk 0:02:39]} 12. cxd4 {[%clk 0:02:46]}  e4 {[%clk 0:02:35]} 13. Be2 {[%clk 0:02:30]}  Qb6 {[%clk 0:02:33]} 14. Nb3 {[%clk 0:02:28]}  a5 {[%clk 0:02:31]} 15. g4 {[%clk 0:02:18]}  a4 {[%clk 0:02:26]} 16. g5 {[%clk 0:02:09]}  axb3 {[%clk 0:02:22]} 17. gxf6 {[%clk 0:02:09]}  Nxf6 {[%clk 0:02:19]} 18. a3 {[%clk 0:01:56]}  Bd7 {[%clk 0:02:15]} 19. Nf5 {[%clk 0:01:53]}  Bxf5 {[%clk 0:02:11]} 20. Rxf5 {[%clk 0:01:54]}  Rac8 {[%clk 0:02:06]} 21. Rc1 {[%clk 0:01:41]}  Rc6 {[%clk 0:02:02]} 22. Rxc6 {[%clk 0:01:38]}  bxc6 {[%clk 0:02:00]} 23. Qe1 {[%clk 0:01:31]}  c5 {[%clk 0:01:55]} 24. Qc3 {[%clk 0:01:13]}  cxd4 {[%clk 0:01:49]} 25. exd4 {[%clk 0:01:09]}  Qb7 {[%clk 0:01:45]} 26. Qg3 {[%clk 0:01:00]}  Kh8 {[%clk 0:01:42]} 27. Qe5 {[%clk 0:00:59]}  Qb6 {[%clk 0:01:39]} 28. Rg5 {[%clk 0:00:47]}  Re8 {[%clk 0:01:36]} 29. Qg3 {[%clk 0:00:47]}  Qxd4+ {[%clk 0:01:34]} 30. Kh1 {[%clk 0:00:44]}  Qxb2 {[%clk 0:01:25]} 31. Bf1 {[%clk 0:00:41]}  Qc1 {[%clk 0:01:21]} 32. Kg1 {[%clk 0:00:40]}  b2 {[%clk 0:01:16]} 0-1


[Site "https://www.chess.com"]

[Event "Titled Tuesday Blitz December 13 Early 2022"]
[White "Muminova, Nafisa"]
[Black "Ronka, Erik"]
[WhiteFideId "14201526"]
[BlackFideId "505080"]
[WhiteElo "2258"]
[BlackElo "2264"]
[Result "0-1"]
[Round "08"]
[TimeControl "180+1"]
[Date "2022.12.14"]
[WhiteClock "0:00:03"]
[BlackClock "0:00:03"]

1. e4 {[%clk 0:03:00]}  c5 {[%clk 0:02:57]} 2. Nf3 {[%clk 0:02:59]}  d6 {[%clk 0:02:57]} 3. d4 {[%clk 0:02:59]}  cxd4 {[%clk 0:02:58]} 4. Nxd4 {[%clk 0:03:00]}  Nf6 {[%clk 0:02:59]} 5. Nc3 {[%clk 0:02:59]}  g6 {[%clk 0:02:59]} 6. Be3 {[%clk 0:02:54]}  Bg7 {[%clk 0:03:00]} 7. f3 {[%clk 0:02:53]}  O-O {[%clk 0:03:00]} 8. Bc4 {[%clk 0:02:53]}  Nc6 {[%clk 0:03:00]} 9. Bb3 {[%clk 0:02:53]}  Bd7 {[%clk 0:03:00]} 10. h4 {[%clk 0:02:53]}  h5 {[%clk 0:03:00]} 11. Qd2 {[%clk 0:02:53]}  Rc8 {[%clk 0:03:00]} 12. O-O-O {[%clk 0:02:53]}  Ne5 {[%clk 0:03:00]} 13. Bh6 {[%clk 0:02:52]}  Bxh6 {[%clk 0:02:03]} 14. Qxh6 {[%clk 0:02:51]}  Rxc3 {[%clk 0:02:04]} 15. bxc3 {[%clk 0:02:50]}  Qa5 {[%clk 0:02:04]} 16. Ne2 {[%clk 0:02:13]}  Bb5 {[%clk 0:01:49]} 17. Nf4 {[%clk 0:02:00]}  Bc4 {[%clk 0:01:07]} 18. Nd5 {[%clk 0:00:45]}  Nxd5 {[%clk 0:00:42]} 19. exd5 {[%clk 0:00:42]}  Qxc3 {[%clk 0:00:32]} 20. Kb1 {[%clk 0:00:41]}  Qb4 {[%clk 0:00:16]} 21. Qd2 {[%clk 0:00:39]}  Qa3 {[%clk 0:00:16]} 22. Qc1 {[%clk 0:00:39]}  Qc5 {[%clk 0:00:16]} 23. Qd2 {[%clk 0:00:36]}  Rc8 {[%clk 0:00:16]} 24. Rhe1 {[%clk 0:00:22]}  a5 {[%clk 0:00:16]} 25. f4 {[%clk 0:00:22]}  Ng4 {[%clk 0:00:10]} 26. Rxe7 {[%clk 0:00:21]}  a4 {[%clk 0:00:10]} 27. Bxc4 {[%clk 0:00:18]}  Qxc4 {[%clk 0:00:10]} 28. Rxb7 {[%clk 0:00:16]}  a3 {[%clk 0:00:08]} 29. Rb4 {[%clk 0:00:14]}  Qc5 {[%clk 0:00:07]} 30. Rb3 {[%clk 0:00:12]}  Nf2 {[%clk 0:00:07]} 31. Re1 {[%clk 0:00:11]}  f6 {[%clk 0:00:04]} 32. Qe2 {[%clk 0:00:07]}  Ng4 {[%clk 0:00:02]} 33. Qe6+ {[%clk 0:00:07]}  Kh7 {[%clk 0:00:03]} 34. Qe7+ {[%clk 0:00:07]}  Kh6 {[%clk 0:00:03]} 35. Qe2 {[%clk 0:00:04]}  f5 {[%clk 0:00:03]} 36. Qd3 {[%clk 0:00:03]}  Nf6 {[%clk 0:00:03]} 0-1


[Site "https://www.chess.com"]

[Event "Titled Tuesday Blitz December 13 Early 2022"]
[White "Osinovsky, Stepan"]
[Black "Hoffmann, Asa"]
[WhiteFideId "4157354"]
[BlackFideId "2001470"]
[WhiteElo "2222"]
[BlackElo "2117"]
[Result "1-0"]
[Round "08"]
[TimeControl "180+1"]
[Date "2022.12.14"]
[WhiteClock "0:00:44"]
[BlackClock "0:00:25"]

1. e4 {[%clk 0:02:58]}  d6 {[%clk 0:02:59]} 2. d4 {[%clk 0:02:57]}  Nf6 {[%clk 0:02:58]} 3. Nc3 {[%clk 0:02:56]}  c6 {[%clk 0:02:58]} 4. g3 {[%clk 0:02:55]}  Nbd7 {[%clk 0:02:57]} 5. Bg2 {[%clk 0:02:55]}  e5 {[%clk 0:02:57]} 6. Nge2 {[%clk 0:02:54]}  Be7 {[%clk 0:02:56]} 7. Be3 {[%clk 0:02:51]}  b5 {[%clk 0:02:54]} 8. a3 {[%clk 0:02:49]}  a6 {[%clk 0:02:53]} 9. h3 {[%clk 0:02:47]}  Qc7 {[%clk 0:02:52]} 10. Qd2 {[%clk 0:02:46]}  Nb6 {[%clk 0:02:50]} 11. b3 {[%clk 0:02:45]}  O-O {[%clk 0:02:45]} 12. O-O {[%clk 0:02:43]}  Re8 {[%clk 0:02:42]} 13. g4 {[%clk 0:02:33]}  Nfd7 {[%clk 0:02:36]} 14. Ng3 {[%clk 0:02:30]}  Bf8 {[%clk 0:02:34]} 15. Nce2 {[%clk 0:02:28]}  Bb7 {[%clk 0:02:33]} 16. f4 {[%clk 0:02:27]}  exd4 {[%clk 0:02:25]} 17. Nxd4 {[%clk 0:02:26]}  c5 {[%clk 0:02:24]} 18. Nde2 {[%clk 0:02:20]}  Rad8 {[%clk 0:02:23]} 19. Rfd1 {[%clk 0:02:03]}  g6 {[%clk 0:02:11]} 20. Qa5 {[%clk 0:02:00]}  Bg7 {[%clk 0:02:04]} 21. Ra2 {[%clk 0:01:58]}  Nb8 {[%clk 0:01:59]} 22. Qe1 {[%clk 0:01:47]}  Nc6 {[%clk 0:01:57]} 23. Qf2 {[%clk 0:01:45]}  a5 {[%clk 0:01:50]} 24. c3 {[%clk 0:01:37]}  a4 {[%clk 0:01:46]} 25. b4 {[%clk 0:01:35]}  Nc4 {[%clk 0:01:43]} 26. Bc1 {[%clk 0:01:30]}  cxb4 {[%clk 0:01:35]} 27. cxb4 {[%clk 0:01:29]}  Ne7 {[%clk 0:01:28]} 28. Rc2 {[%clk 0:01:28]}  d5 {[%clk 0:01:27]} 29. e5 {[%clk 0:01:26]}  f6 {[%clk 0:01:11]} 30. Nd4 {[%clk 0:01:23]}  fxe5 {[%clk 0:01:03]} 31. Ne6 {[%clk 0:01:21]}  Qd7 {[%clk 0:00:58]} 32. Nxd8 {[%clk 0:01:19]}  Rxd8 {[%clk 0:00:57]} 33. fxe5 {[%clk 0:01:17]}  Bxe5 {[%clk 0:00:54]} 34. Bg5 {[%clk 0:01:16]}  Rf8 {[%clk 0:00:48]} 35. Qe1 {[%clk 0:01:15]}  Bf6 {[%clk 0:00:45]} 36. Bxf6 {[%clk 0:01:13]}  Rxf6 {[%clk 0:00:45]} 37. Re2 {[%clk 0:01:13]}  Nc6 {[%clk 0:00:43]} 38. Bxd5+ {[%clk 0:01:10]}  Kg7 {[%clk 0:00:41]} 39. Bxc4 {[%clk 0:01:07]}  Qc7 {[%clk 0:00:37]} 40. Bxb5 {[%clk 0:01:04]}  Rf3 {[%clk 0:00:32]} 41. Nf1 {[%clk 0:00:48]}  Qb6+ {[%clk 0:00:31]} 42. Rf2 {[%clk 0:00:44]}  Rxf2 {[%clk 0:00:27]} 43. Qxf2 {[%clk 0:00:45]}  Qxb5 {[%clk 0:00:27]} 44. Rd7+ {[%clk 0:00:45]}  Kh6 {[%clk 0:00:26]} 45. Qf4+ {[%clk 0:00:44]}  g5 {[%clk 0:00:25]} 46. Qf6# {[%clk 0:00:44]} 1-0


[Site "https://www.chess.com"]

[Event "Titled Tuesday Blitz December 13 Early 2022"]
[White "Ozen, Bahadir"]
[Black "Volkov, Maksim"]
[WhiteFideId "6337058"]
[BlackFideId "54123070"]
[WhiteElo "2503"]
[BlackElo "2257"]
[Result "1-0"]
[Round "08"]
[TimeControl "180+1"]
[Date "2022.12.14"]
[WhiteClock "0:00:03"]
[BlackClock "0:00:05"]

1. g3 {[%clk 0:03:00]}  d5 {[%clk 0:02:59]} 2. Nf3 {[%clk 0:03:00]}  Nf6 {[%clk 0:02:59]} 3. Bg2 {[%clk 0:03:01]}  Bg4 {[%clk 0:02:59]} 4. h3 {[%clk 0:03:01]}  Bh5 {[%clk 0:02:57]} 5. O-O {[%clk 0:03:01]}  e6 {[%clk 0:02:58]} 6. c4 {[%clk 0:03:00]}  c6 {[%clk 0:02:58]} 7. cxd5 {[%clk 0:02:57]}  Bxf3 {[%clk 0:02:58]} 8. Bxf3 {[%clk 0:02:57]}  cxd5 {[%clk 0:02:58]} 9. Nc3 {[%clk 0:02:53]}  Nc6 {[%clk 0:02:57]} 10. d3 {[%clk 0:02:53]}  Bd6 {[%clk 0:02:55]} 11. Bg2 {[%clk 0:02:53]}  O-O {[%clk 0:02:54]} 12. a3 {[%clk 0:02:52]}  Rc8 {[%clk 0:02:48]} 13. Bd2 {[%clk 0:02:52]}  Qe7 {[%clk 0:02:39]} 14. Qa4 {[%clk 0:02:45]}  a6 {[%clk 0:02:36]} 15. Rfc1 {[%clk 0:02:44]}  Rc7 {[%clk 0:02:15]} 16. Qd1 {[%clk 0:02:42]}  Rfc8 {[%clk 0:02:14]} 17. Rab1 {[%clk 0:02:36]}  Nd4 {[%clk 0:01:53]} 18. e3 {[%clk 0:02:34]}  Nf5 {[%clk 0:01:49]} 19. Ne2 {[%clk 0:02:17]}  e5 {[%clk 0:01:38]} 20. e4 {[%clk 0:01:45]}  dxe4 {[%clk 0:01:37]} 21. dxe4 {[%clk 0:01:46]}  Nd4 {[%clk 0:01:37]} 22. Nxd4 {[%clk 0:01:46]}  exd4 {[%clk 0:01:38]} 23. Qe2 {[%clk 0:01:47]}  Nd7 {[%clk 0:01:29]} 24. f4 {[%clk 0:01:45]}  f6 {[%clk 0:01:05]} 25. b4 {[%clk 0:01:23]}  b5 {[%clk 0:01:03]} 26. Kh2 {[%clk 0:01:20]}  Nb6 {[%clk 0:01:01]} 27. Qd3 {[%clk 0:01:15]}  Nc4 {[%clk 0:00:59]} 28. Be1 {[%clk 0:00:57]}  Rd8 {[%clk 0:00:47]} 29. Bf2 {[%clk 0:00:52]}  h5 {[%clk 0:00:40]} 30. h4 {[%clk 0:00:48]}  g5 {[%clk 0:00:40]} 31. hxg5 {[%clk 0:00:46]}  fxg5 {[%clk 0:00:40]} 32. e5 {[%clk 0:00:47]}  gxf4 {[%clk 0:00:21]} 33. exd6 {[%clk 0:00:45]}  Qxd6 {[%clk 0:00:21]} 34. gxf4 {[%clk 0:00:35]}  Rg7 {[%clk 0:00:20]} 35. Rg1 {[%clk 0:00:30]}  Qxf4+ {[%clk 0:00:16]} 36. Bg3 {[%clk 0:00:30]}  Qg5 {[%clk 0:00:15]} 37. Bh3 {[%clk 0:00:27]}  Qe3 {[%clk 0:00:13]} 38. Qxe3 {[%clk 0:00:15]}  dxe3 {[%clk 0:00:14]} 39. Be6+ {[%clk 0:00:14]}  Kh7 {[%clk 0:00:13]} 40. Bxc4 {[%clk 0:00:12]}  bxc4 {[%clk 0:00:13]} 41. Rbe1 {[%clk 0:00:13]}  Rd3 {[%clk 0:00:13]} 42. Kh3 {[%clk 0:00:14]}  Rxa3 {[%clk 0:00:12]} 43. Re2 {[%clk 0:00:07]}  Re7 {[%clk 0:00:09]} 44. Rc1 {[%clk 0:00:06]}  c3 {[%clk 0:00:08]} 45. b5 {[%clk 0:00:06]}  axb5 {[%clk 0:00:08]} 46. Bd6 {[%clk 0:00:06]}  Ra2 {[%clk 0:00:02]} 47. Rxa2 {[%clk 0:00:05]}  Re6 {[%clk 0:00:03]} 48. Bg3 {[%clk 0:00:06]}  b4 {[%clk 0:00:03]} 49. Re2 {[%clk 0:00:05]}  Kg6 {[%clk 0:00:03]} 50. Bf4 {[%clk 0:00:05]}  Re4 {[%clk 0:00:02]} 51. Kg3 {[%clk 0:00:04]}  Kf5 {[%clk 0:00:01]} 52. Bxe3 {[%clk 0:00:04]}  h4+ {[%clk 0:00:02]} 53. Kf3 {[%clk 0:00:05]}  Rc4 {[%clk 0:00:02]} 54. Rf2 {[%clk 0:00:03]}  b3 {[%clk 0:00:03]} 55. Ke2+ {[%clk 0:00:04]}  Ke6 {[%clk 0:00:04]} 56. Kd3 {[%clk 0:00:04]}  b2 {[%clk 0:00:05]} 57. Rb1 {[%clk 0:00:03]}  Rb4 {[%clk 0:00:05]} 58. Rc2 {[%clk 0:00:03]} 1-0


[Site "https://www.chess.com"]

[Event "Titled Tuesday Blitz December 13 Early 2022"]
[White "Pajeken, Jakob Leon"]
[Black "Donchenko, Alexander"]
[WhiteFideId "12942839"]
[BlackFideId "24603295"]
[WhiteElo "2414"]
[BlackElo "2581"]
[Result "0-1"]
[Round "08"]
[TimeControl "180+1"]
[Date "2022.12.14"]
[WhiteClock "0:00:04"]
[BlackClock "0:00:34"]

1. d4 {[%clk 0:03:00]}  Nf6 {[%clk 0:02:30]} 2. Nf3 {[%clk 0:03:00]}  d5 {[%clk 0:02:30]} 3. c4 {[%clk 0:03:00]}  e6 {[%clk 0:02:29]} 4. e3 {[%clk 0:02:55]}  Be7 {[%clk 0:02:28]} 5. b3 {[%clk 0:02:53]}  O-O {[%clk 0:02:27]} 6. Ba3 {[%clk 0:02:48]}  Bxa3 {[%clk 0:02:25]} 7. Nxa3 {[%clk 0:02:49]}  c5 {[%clk 0:02:25]} 8. Nc2 {[%clk 0:02:49]}  Nc6 {[%clk 0:02:24]} 9. cxd5 {[%clk 0:02:45]}  Nxd5 {[%clk 0:02:23]} 10. dxc5 {[%clk 0:02:41]}  Qa5+ {[%clk 0:02:22]} 11. Qd2 {[%clk 0:02:41]}  Qxc5 {[%clk 0:02:21]} 12. Ncd4 {[%clk 0:02:36]}  Nxd4 {[%clk 0:02:19]} 13. Nxd4 {[%clk 0:02:34]}  Bd7 {[%clk 0:02:18]} 14. Rc1 {[%clk 0:02:32]}  Qa3 {[%clk 0:02:18]} 15. Bb5 {[%clk 0:02:30]}  Rfd8 {[%clk 0:02:16]} 16. O-O {[%clk 0:02:23]}  e5 {[%clk 0:02:14]} 17. Bxd7 {[%clk 0:02:21]}  exd4 {[%clk 0:02:14]} 18. Bh3 {[%clk 0:02:10]}  dxe3 {[%clk 0:02:14]} 19. fxe3 {[%clk 0:02:11]}  Qe7 {[%clk 0:02:13]} 20. Rf3 {[%clk 0:02:02]}  h6 {[%clk 0:02:09]} 21. Rcf1 {[%clk 0:01:52]}  Nf6 {[%clk 0:02:08]} 22. Qf2 {[%clk 0:01:47]}  Rd6 {[%clk 0:01:58]} 23. Qh4 {[%clk 0:01:41]}  Rad8 {[%clk 0:01:57]} 24. Rg3 {[%clk 0:01:37]}  Kf8 {[%clk 0:01:54]} 25. Bf5 {[%clk 0:01:32]}  Rd1 {[%clk 0:01:52]} 26. Qc4 {[%clk 0:01:13]}  Rxf1+ {[%clk 0:01:43]} 27. Kxf1 {[%clk 0:01:13]}  g6 {[%clk 0:01:38]} 28. Bc2 {[%clk 0:01:07]}  Kg7 {[%clk 0:01:37]} 29. Rf3 {[%clk 0:01:05]}  Qe5 {[%clk 0:01:35]} 30. h3 {[%clk 0:00:59]}  Rd2 {[%clk 0:01:34]} 31. Kg1 {[%clk 0:00:41]}  b5 {[%clk 0:01:31]} 32. Qc6 {[%clk 0:00:39]}  b4 {[%clk 0:01:17]} 33. Rf2 {[%clk 0:00:17]}  Rxf2 {[%clk 0:01:09]} 34. Kxf2 {[%clk 0:00:18]}  Nd5 {[%clk 0:01:10]} 35. Qc5 {[%clk 0:00:16]}  a5 {[%clk 0:01:07]} 36. Qd4 {[%clk 0:00:15]}  Kf6 {[%clk 0:01:05]} 37. Ke2 {[%clk 0:00:14]}  Nc3+ {[%clk 0:01:05]} 38. Kd3 {[%clk 0:00:14]}  Nxa2 {[%clk 0:01:04]} 39. Kc4 {[%clk 0:00:12]}  Nc3 {[%clk 0:00:59]} 40. Qf4+ {[%clk 0:00:11]}  Qxf4+ {[%clk 0:00:47]} 41. exf4 {[%clk 0:00:12]}  g5 {[%clk 0:00:47]} 42. fxg5+ {[%clk 0:00:10]}  Kxg5 {[%clk 0:00:47]} 43. Kc5 {[%clk 0:00:11]}  Ne2 {[%clk 0:00:36]} 44. Kb6 {[%clk 0:00:09]}  Nd4 {[%clk 0:00:37]} 45. Bd1 {[%clk 0:00:10]}  a4 {[%clk 0:00:37]} 46. bxa4 {[%clk 0:00:09]}  b3 {[%clk 0:00:38]} 47. Bxb3 {[%clk 0:00:03]}  Nxb3 {[%clk 0:00:39]} 48. Kb5 {[%clk 0:00:02]}  Kf4 {[%clk 0:00:38]} 49. Kc4 {[%clk 0:00:03]}  Na5+ {[%clk 0:00:37]} 50. Kd5 {[%clk 0:00:03]}  Kg3 {[%clk 0:00:37]} 51. Ke5 {[%clk 0:00:03]}  Kxg2 {[%clk 0:00:34]} 52. Kf6 {[%clk 0:00:03]}  Kxh3 {[%clk 0:00:34]} 53. Kxf7 {[%clk 0:00:04]}  h5 {[%clk 0:00:34]} 54. Kg6 {[%clk 0:00:04]}  h4 {[%clk 0:00:34]} 0-1


[Site "https://www.chess.com"]

[Event "Titled Tuesday Blitz December 13 Early 2022"]
[White "Pakleza, Zbigniew"]
[Black "Mihajlov, Sebastian"]
[WhiteFideId "1119290"]
[BlackFideId "1512110"]
[WhiteElo "2410"]
[BlackElo "2464"]
[Result "1-0"]
[Round "08"]
[TimeControl "180+1"]
[Date "2022.12.14"]
[WhiteClock "0:02:38"]
[BlackClock "0:02:26"]

1. Nf3 {[%clk 0:03:00]}  d5 {[%clk 0:03:00]} 2. c4 {[%clk 0:03:01]}  c6 {[%clk 0:03:00]} 3. cxd5 {[%clk 0:03:00]}  cxd5 {[%clk 0:03:01]} 4. d4 {[%clk 0:03:01]}  Nf6 {[%clk 0:03:01]} 5. Nc3 {[%clk 0:03:01]}  Nc6 {[%clk 0:03:02]} 6. Bf4 {[%clk 0:03:02]}  Bf5 {[%clk 0:03:03]} 7. Qb3 {[%clk 0:03:02]}  Na5 {[%clk 0:03:04]} 8. Qa4+ {[%clk 0:03:02]}  Bd7 {[%clk 0:03:05]} 9. Qc2 {[%clk 0:03:02]}  e6 {[%clk 0:03:06]} 10. e3 {[%clk 0:03:03]}  Nh5 {[%clk 0:03:01]} 11. Be5 {[%clk 0:03:02]}  f6 {[%clk 0:02:54]} 12. Bg3 {[%clk 0:03:02]}  Nxg3 {[%clk 0:02:47]} 13. hxg3 {[%clk 0:03:03]}  f5 {[%clk 0:02:47]} 14. g4 {[%clk 0:02:58]}  fxg4 {[%clk 0:02:34]} 15. Ne5 {[%clk 0:02:58]}  Nc6 {[%clk 0:02:25]} 16. Rxh7 {[%clk 0:02:39]}  Rxh7 {[%clk 0:02:25]} 17. Qg6+ {[%clk 0:02:38]}  Ke7 {[%clk 0:02:25]} 18. Qf7+ {[%clk 0:02:37]}  Kd6 {[%clk 0:02:26]} 19. Nb5# {[%clk 0:02:38]} 1-0


[Site "https://www.chess.com"]